[Event "Chess Festival Groningen 2023 | A"]
[Site "Groningen, Netherlands"]
[Date "2023.12.27"]
[Round "6.21"]
[White "Van Helvoort, Rob"]
[Black "Grooten, Herman"]
[Result "1-0"]
[TimeControl "90min/40moves + 30min + 30sec/move"]
[WhiteElo "2098"]
[BlackElo "2243"]

1. e4 {[%clk 01:30:53]} c6 {[%clk 01:30:50]} 2. Nc3 {[%clk 01:31:16]} d5 {[%clk
01:31:12]} 3. Qf3 {[%clk 01:31:41]} e6 {[%clk 01:27:26]} 4. d4 {[%clk
01:31:38]} Nf6 {[%clk 01:22:06]} 5. Bg5 {[%clk 01:30:23]} dxe4 {[%clk
01:19:15]} 6. Nxe4 {[%clk 01:30:43]} Be7 {[%clk 01:19:03]} 7. Bxf6 {[%clk
01:27:24]} gxf6 {[%clk 01:19:14]} 8. c3 {[%clk 01:19:15]} f5 {[%clk 01:17:19]}
9. Nd2 {[%clk 01:16:00]} Nd7 {[%clk 01:14:23]} 10. Nc4 {[%clk 00:58:34]} Qc7
{[%clk 01:13:45]} 11. Qe3 {[%clk 00:56:50]} Nb6 {[%clk 01:03:04]} 12. Nf3
{[%clk 00:46:15]} Nd5 {[%clk 01:01:39]} 13. Qd2 {[%clk 00:46:02]} {[%emt
00:01:06]} Qf4 {[%clk 00:58:22]} 14. Qxf4 {[%clk 00:43:24]} Nxf4 {[%clk
00:57:59]} 15. g3 {[%clk 00:42:38]} Nd5 {[%clk 00:57:58]} 16. Nce5 {[%clk
00:41:47]} f6 {[%clk 00:54:06]} 17. Nd3 {[%clk 00:42:02]} Bd7 {[%clk 00:53:52]}
18. Bg2 {[%clk 00:41:32]} Bd6 {[%clk 00:53:44]} 19. Nd2 {[%clk 00:38:37]} Rd8
{[%clk 00:52:08]} 20. O-O-O {[%clk 00:35:42]} Kf7 {[%clk 00:52:01]} 21. Bf3
{[%clk 00:33:33]} Bc7 {[%clk 00:50:02]} 22. Bh5+ {[%clk 00:33:24]} Kg7 {[%clk
00:49:43]} 23. Rde1 {[%clk 00:32:56]} b6 {[%clk 00:45:47]} 24. h3 {[%clk
00:29:16]} Rhf8 {[%clk 00:43:36]} 25. Bf3 {[%clk 00:24:21]} Bc8 {[%clk
00:43:10]} 26. Bxd5 {[%clk 00:22:43]} cxd5 {[%clk 00:39:35]} 27. Kc2 {[%clk
00:19:55]} Rfe8 {[%clk 00:38:38]} 28. f4 {[%clk 00:19:57]} a5 {[%clk 00:38:11]}
29. Nf3 {[%clk 00:19:46]} Kf7 {[%clk 00:35:27]} {[%emt 00:02:32]} 30. Rhg1
{[%clk 00:15:29]} {[%emt 00:05:05]} Ba6 {[%clk 00:35:19]} {[%emt 00:00:38]} 31.
Nf2 {[%clk 00:15:04]} {[%emt 00:00:52]} Rg8 {[%clk 00:31:37]} {[%emt 00:04:04]}
32. Nh1 {[%clk 00:13:44]} {[%emt 00:02:03]} Rg7 {[%clk 00:31:17]} {[%emt
00:01:20]} 33. Re3 {[%clk 00:13:38]} Bxf4 {[%clk 00:31:12]} {[%emt 00:00:18]}
34. gxf4 {[%clk 00:13:50]} {[%emt 00:00:51]} Rdg8 {[%clk 00:31:19]} 35. Rxg7+
{[%clk 00:12:57]} {[%emt 00:01:15]} Rxg7 {[%clk 00:31:43]} {[%emt 00:00:37]} 36.
Ne1 {[%clk 00:09:41]} {[%emt 00:03:19]} Bf1 {[%clk 00:29:13]} {[%emt 00:02:55]}
37. Nf2 {[%clk 00:06:24]} {[%emt 00:03:48]} h5 {[%clk 00:27:48]} {[%emt
00:01:55]} 38. Kd2 {[%clk 00:06:09]} {[%emt 00:00:45]} a4 {[%clk 00:27:58]}
{[%emt 00:00:58]} 39. a3 {[%clk 00:06:22]} Ke7 {[%clk 00:26:30]} {[%emt
00:01:36]} 40. h4 {[%clk 00:02:40]} {[%emt 00:04:13]} Kd6 {[%clk 00:25:23]}
{[%emt 00:01:34]} 41. Rf3 {[%clk 00:27:59]} {[%emt 00:05:11]} Bc4 {[%clk
00:48:36]} {[%emt 00:07:17]} 42. Rh3 {[%clk 00:21:36]} {[%emt 00:07:05]} Bb5
{[%clk 00:38:28]} {[%emt 00:10:39]} 43. Ned3 {[%clk 00:18:43]} {[%emt
00:03:12]} Ke7 {[%clk 00:36:52]} {[%emt 00:02:12]} 44. Ne1 {[%clk 00:13:03]}
{[%emt 00:06:01]} Kf8 {[%clk 00:35:43]} {[%emt 00:01:39]} 45. Ke3 {[%clk
00:10:08]} {[%emt 00:04:19]} Bc4 {[%clk 00:32:28]} {[%emt 00:02:59]} 46. Kf3
{[%clk 00:08:52]} {[%emt 00:01:38]} Rg4 {[%clk 00:28:44]} {[%emt 00:04:26]} 47.
Rh2 {[%clk 00:08:25]} {[%emt 00:00:46]} Rg7 {[%clk 00:28:52]} {[%emt 00:00:31]}
48. Rg2 {[%clk 00:08:21]} {[%emt 00:00:23]} Ra7 {[%clk 00:27:45]} {[%emt
00:02:13]} 49. Ned3 {[%clk 00:08:38]} Kf7 {[%clk 00:25:50]} {[%emt 00:02:03]}
50. Rg3 {[%clk 00:08:58]} {[%emt 00:00:30]} Ra8 {[%clk 00:25:57]} {[%emt
00:00:05]} 51. Nb4 {[%clk 00:09:14]} {[%emt 00:00:14]} Bb3 {[%clk 00:25:37]}
{[%emt 00:00:49]} 52. Ke2 {[%clk 00:08:59]} {[%emt 00:00:44]} Re8 {[%clk
00:25:10]} {[%emt 00:00:59]} 53. Kd2 {[%clk 00:09:20]} {[%emt 00:00:09]} Rc8
{[%clk 00:25:10]} {[%emt 00:01:03]} 54. Nd1 {[%clk 00:09:38]} Rd8 {[%clk
00:23:59]} {[%emt 00:01:17]} 55. Ne3 {[%clk 00:09:56]} {[%emt 00:00:12]} Rc8
{[%clk 00:23:15]} {[%emt 00:01:14]} 56. Nd3 {[%clk 00:10:17]} {[%emt 00:00:13]}
Ba2 {[%clk 00:21:36]} {[%emt 00:02:26]} 57. Rg1 {[%clk 00:09:50]} {[%emt
00:00:38]} Rd8 {[%clk 00:19:24]} {[%emt 00:03:13]} 58. Ke2 {[%clk 00:10:12]}
Bb3 {[%clk 00:17:49]} {[%emt 00:01:40]} 59. Kf2 {[%clk 00:10:22]} {[%emt
00:00:23]} Rd7 {[%clk 00:16:37]} {[%emt 00:01:39]} 60. Nc1 {[%clk 00:10:34]}
{[%emt 00:00:18]} Bc4 {[%clk 00:16:56]} {[%emt 00:00:12]} 61. Nxc4 {[%clk
00:10:52]} {[%emt 00:00:18]} dxc4 {[%clk 00:17:21]} 62. Na2 {[%clk 00:10:45]}
{[%emt 00:00:40]} Rd6 {[%clk 00:15:05]} {[%emt 00:02:49]} 63. Nb4 {[%clk
00:10:47]} {[%emt 00:00:41]} Rd8 {[%clk 00:13:14]} {[%emt 00:02:00]} 64. Nc2
{[%clk 00:11:04]} {[%emt 00:00:40]} b5 {[%clk 00:12:33]} {[%emt 00:00:45]} 65.
Ne3 {[%clk 00:11:21]} {[%emt 00:00:12]} e5 {[%clk 00:07:06]} {[%emt 00:06:18]}
66. Nxf5 {[%clk 00:07:33]} {[%emt 00:03:56]} exf4 {[%clk 00:06:48]} {[%emt
00:00:48]} 67. Kf3 {[%clk 00:07:12]} {[%emt 00:00:54]} Rd5 {[%clk 00:06:47]}
{[%emt 00:00:29]} 68. Kxf4 {[%clk 00:07:33]} {[%emt 00:00:12]} Ke6 {[%clk
00:07:07]} {[%emt 00:00:09]} 69. Re1+ {[%clk 00:07:20]} {[%emt 00:00:41]} Kf7
{[%clk 00:07:14]} {[%emt 00:00:51]} 70. Re7+ {[%clk 00:07:20]} {[%emt
00:00:20]} Kf8 {[%clk 00:07:40]} 71. Rb7 {[%clk 00:07:19]} {[%emt 00:00:38]}
1-0

[Event "Chess Festival Groningen 2023 | A"]
[Site "Groningen, Netherlands"]
[Date "2023.12.27"]
[Round "6.22"]
[White "Arnold, Rhys"]
[Black "Smeets, Kobe"]
[Result "1/2-1/2"]
[TimeControl "90min/40moves + 30min + 30sec/move"]
[WhiteElo "2053"]
[BlackElo "2239"]

1. e4 {[%clk 01:30:59]} c5 {[%clk 01:30:52]} {[%emt 00:00:04]} 2. Nf3 {[%clk
01:31:25]} e6 {[%clk 01:31:09]} 3. d4 {[%clk 01:31:51]} cxd4 {[%clk 01:31:36]}
4. Nxd4 {[%clk 01:32:12]} Nc6 {[%clk 01:31:58]} {[%emt 00:03:05]} 5. a3 {[%clk
01:32:40]} Nf6 {[%clk 01:27:50]} 6. Nc3 {[%clk 01:33:02]} Qc7 {[%clk 01:13:56]}
7. Be3 {[%clk 01:32:13]} a6 {[%clk 01:12:37]} 8. f4 {[%clk 01:32:11]} d6 {[%clk
01:12:38]} 9. Qf3 {[%clk 01:32:04]} Be7 {[%clk 01:10:42]} 10. O-O-O {[%clk
01:24:21]} h5 {[%clk 01:10:27]} 11. Nxc6 {[%clk 01:22:53]} Qxc6 {[%clk
01:09:37]} 12. h3 {[%clk 01:19:40]} b5 {[%clk 01:01:39]} 13. e5 {[%clk
01:10:47]} Qxf3 {[%clk 00:57:33]} 14. gxf3 {[%clk 01:11:13]} dxe5 {[%clk
00:57:44]} 15. fxe5 {[%clk 01:11:21]} Nd7 {[%clk 00:51:41]} {[%emt 00:01:59]}
16. f4 {[%clk 01:07:36]} Bb7 {[%clk 00:45:06]} 17. Rg1 {[%clk 01:06:24]} g6
{[%clk 00:39:16]} 18. Bg2 {[%clk 00:56:31]} O-O-O {[%clk 00:39:37]} {[%emt
00:00:05]} 19. a4 {[%clk 00:49:01]} b4 {[%clk 00:30:07]} 20. Bxb7+ Kxb7 {[%clk
00:30:35]} 21. Ne4 {[%clk 00:49:01]} Nb6 {[%clk 00:28:30]} {[%emt 00:04:02]} 22.
Bxb6 {[%clk 00:48:07]} Kxb6 {[%clk 00:28:58]} 23. Rxd8 {[%clk 00:45:59]} Rxd8
{[%clk 00:29:19]} 24. Rd1 {[%clk 00:46:21]} {[%emt 00:00:27]} Rd5 {[%clk
00:15:56]} 25. Rd3 {[%clk 00:28:21]} Rxd3 {[%clk 00:13:52]} 26. cxd3 {[%clk
00:28:46]} Kc6 {[%clk 00:14:11]} 27. Kd2 {[%clk 00:24:49]} {[%emt 00:04:01]}
Kd5 {[%clk 00:14:33]} {[%emt 00:00:46]} 28. Ke3 {[%clk 00:22:27]} {[%emt
00:02:19]} h4 {[%clk 00:06:19]} {[%emt 00:08:34]} 29. d4 {[%clk 00:17:26]}
{[%emt 00:05:34]} Kc4 {[%clk 00:05:39]} {[%emt 00:01:06]} 30. Nd2+ {[%clk
00:17:41]} {[%emt 00:00:16]} Kd5 {[%clk 00:06:05]} {[%emt 00:00:06]} 31. Ne4
{[%emt 00:00:51]} 1/2-1/2

[Event "Chess Festival Groningen 2023 | A"]
[Site "Groningen, Netherlands"]
[Date "2023.12.27"]
[Round "6.23"]
[White "Jacobs, Florian"]
[Black "Kazarjan, Gachatur"]
[Result "1-0"]
[TimeControl "90min/40moves + 30min + 30sec/move"]
[WhiteElo "2218"]
[BlackElo "2078"]

1. d4 {[%clk 01:30:56]} {[%emt 00:00:46]} f5 {[%clk 01:30:41]} 2. g3 {[%clk
01:31:18]} Nf6 {[%clk 01:31:05]} 3. Bg2 {[%clk 01:31:41]} {[%emt 00:00:14]} g6
{[%clk 01:31:28]} {[%emt 00:00:14]} 4. Nf3 {[%clk 01:32:05]} Bg7 {[%clk
01:31:52]} 5. O-O {[%clk 01:32:26]} d6 {[%clk 01:31:32]} {[%emt 00:00:48]} 6.
b4 {[%clk 01:31:54]} {[%emt 00:01:14]} Nc6 {[%clk 01:30:42]} {[%emt 00:01:09]}
7. b5 {[%clk 01:32:05]} {[%emt 00:00:30]} Nb8 {[%clk 01:29:47]} {[%emt
00:01:14]} 8. Bb2 {[%clk 01:31:22]} {[%emt 00:01:17]} a6 {[%clk 01:28:28]}
{[%emt 00:01:45]} 9. a4 {[%clk 01:31:20]} {[%emt 00:00:34]} O-O {[%clk
01:28:14]} {[%emt 00:01:16]} 10. Nbd2 {[%clk 01:27:50]} {[%emt 00:03:46]} h6
{[%clk 01:27:26]} {[%emt 00:01:14]} 11. c4 {[%clk 01:26:20]} {[%emt 00:02:06]}
Nbd7 {[%clk 01:27:09]} {[%emt 00:00:24]} 12. Qc2 {[%clk 01:22:43]} {[%emt
00:04:06]} c5 {[%clk 01:20:21]} {[%emt 00:07:21]} 13. bxc6 {[%clk 01:20:41]}
{[%emt 00:02:29]} bxc6 {[%clk 01:20:40]} {[%emt 00:00:39]} 14. Nh4 {[%clk
01:21:05]} {[%emt 00:00:08]} Kh7 {[%clk 01:20:25]} {[%emt 00:00:37]} 15. e4
{[%clk 01:16:49]} {[%emt 00:04:26]} e6 {[%clk 01:17:46]} {[%emt 00:03:30]} 16.
exf5 {[%clk 01:10:54]} {[%emt 00:06:00]} exf5 {[%clk 01:14:12]} {[%emt
00:04:24]} 17. Bxc6 {[%clk 01:10:23]} {[%emt 00:00:45]} Rb8 {[%clk 01:14:30]}
{[%emt 00:00:43]} 18. Rab1 {[%clk 01:06:25]} {[%emt 00:04:14]} Qc7 {[%clk
01:12:52]} {[%emt 00:01:49]} 19. Bg2 {[%clk 01:05:00]} {[%emt 00:02:43]} d5
{[%clk 01:05:53]} {[%emt 00:06:42]} 20. Ba3 {[%clk 00:55:53]} {[%emt 00:09:37]}
Re8 {[%clk 00:59:20]} {[%emt 00:07:05]} 21. Rxb8 {[%clk 00:56:14]} {[%emt
00:00:06]} Nxb8 {[%clk 00:59:44]} {[%emt 00:00:31]} 22. Bc5 {[%clk 00:54:26]}
{[%emt 00:02:21]} Bb7 {[%clk 00:46:35]} {[%emt 00:13:36]} 23. cxd5 {[%clk
00:51:44]} {[%emt 00:02:52]} Qd7 {[%clk 00:38:42]} {[%emt 00:08:18]} 24. Nc4
{[%clk 00:38:47]} {[%emt 00:14:03]} Nxd5 {[%clk 00:36:46]} {[%emt 00:01:52]} 25.
Nd6 {[%clk 00:37:38]} {[%emt 00:01:40]} Rd8 {[%clk 00:36:54]} {[%emt 00:00:25]}
26. Qb3 {[%clk 00:36:07]} {[%emt 00:01:58]} 1-0

[Event "Chess Festival Groningen 2023 | A"]
[Site "Groningen, Netherlands"]
[Date "2023.12.27"]
[Round "6.24"]
[White "Goudriaan, Rafael"]
[Black "Labruyere, Roger"]
[Result "1/2-1/2"]
[TimeControl "90min/40moves + 30min + 30sec/move"]
[WhiteElo "2039"]
[BlackElo "2208"]

1. e4 {[%clk 01:30:57]} c5 {[%clk 01:31:00]} 2. Nf3 {[%clk 01:31:11]} {[%emt
00:00:30]} d6 {[%clk 01:31:27]} 3. Bb5+ {[%clk 01:31:34]} Nd7 {[%clk 01:31:54]}
4. c4 {[%clk 01:32:00]} a6 {[%clk 01:31:33]} 5. Ba4 {[%clk 01:32:11]} e5 {[%clk
01:31:22]} 6. Nc3 {[%clk 01:31:16]} Ngf6 {[%clk 01:31:47]} 7. d3 {[%clk
01:31:22]} Be7 {[%clk 01:32:13]} 8. h3 {[%clk 01:30:58]} O-O {[%clk 01:32:05]}
9. Be3 {[%clk 01:29:46]} Rb8 {[%clk 01:30:08]} 10. Qd2 {[%clk 01:28:32]} Ne8
{[%clk 01:28:43]} {[%emt 00:00:34]} 11. g4 {[%clk 01:16:33]} Nc7 {[%clk
01:29:05]} 12. Bb3 {[%clk 01:05:46]} Re8 {[%clk 01:28:37]} 13. Nh2 {[%clk
00:58:33]} Nf8 {[%clk 01:26:22]} 14. f4 {[%clk 00:54:44]} Bh4+ {[%clk
01:26:03]} 15. Kd1 {[%clk 00:53:41]} exf4 {[%clk 01:24:20]} 16. Bxf4 {[%clk
00:53:26]} Ng6 {[%clk 01:23:13]} 17. Be3 {[%clk 00:51:18]} Be6 {[%clk
01:19:54]} 18. Nf3 {[%clk 00:50:46]} Bg3 {[%clk 01:20:01]} 19. Kc2 {[%clk
00:47:41]} b5 {[%clk 01:18:54]} 20. Rag1 {[%clk 00:40:28]} Be5 {[%clk
01:16:29]} 21. h4 {[%clk 00:39:04]} bxc4 {[%clk 01:14:23]} 22. dxc4 {[%clk
00:38:59]} Qc8 {[%clk 01:12:46]} 23. h5 {[%clk 00:36:51]} Ne7 {[%clk 01:13:13]}
24. h6 {[%clk 00:34:37]} Ng6 {[%clk 01:06:05]} 25. Nxe5 {[%clk 00:33:38]} Nxe5
{[%clk 01:04:54]} 26. hxg7 {[%clk 00:28:58]} Nxg4 {[%clk 00:55:50]} 27. Bf4
{[%clk 00:20:58]} Qb7 {[%clk 00:48:43]} 28. Qe2 {[%clk 00:17:03]} Bf5 {[%clk
00:19:12]} {[%emt 00:18:39]} 29. Kc1 {[%clk 00:11:19]} {[%emt 00:06:28]} Nf6
{[%clk 00:18:59]} {[%emt 00:00:28]} 30. Rh6 {[%clk 00:07:54]} {[%emt 00:03:56]}
Nxe4 {[%clk 00:16:35]} {[%emt 00:02:57]} 31. Nxe4 {[%clk 00:07:18]} {[%emt
00:01:24]} Bxe4 {[%clk 00:15:57]} {[%emt 00:00:47]} 32. Qh2 {[%clk 00:06:09]}
{[%emt 00:02:08]} Bf5 {[%clk 00:14:28]} {[%emt 00:01:34]} 33. Rh1 {[%clk
00:04:51]} {[%emt 00:01:44]} Qe4 {[%clk 00:09:43]} {[%emt 00:05:15]} 34. Bc2
{[%clk 00:04:43]} {[%emt 00:00:42]} Qxc2+ {[%clk 00:09:33]} {[%emt 00:00:50]}
35. Qxc2 {[%clk 00:05:08]} Bxc2 {[%clk 00:09:59]} {[%emt 00:00:16]} 36. Kxc2
{[%clk 00:05:35]} Ne6 {[%clk 00:06:48]} {[%emt 00:03:23]} 37. Bxd6 {[%clk
00:05:02]} {[%emt 00:01:38]} Rbc8 {[%clk 00:01:25]} {[%emt 00:05:18]} 38. Rxh7
{[%clk 00:04:33]} {[%emt 00:01:01]} f6 {[%clk 00:01:52]} {[%emt 00:00:17]} 39.
R7h5 {[%clk 00:04:13]} {[%emt 00:00:32]} Kxg7 {[%clk 00:01:45]} {[%emt
00:00:45]} 40. Rh7+ {[%clk 00:02:39]} {[%emt 00:01:57]} Kg6 {[%clk 00:02:08]}
{[%emt 00:00:19]} 41. R7h6+ {[%clk 00:00:54]} {[%emt 00:02:03]} Kf7 {[%clk
00:00:35]} {[%emt 00:02:37]} 42. Rh7+ {[%clk 00:00:39]} {[%emt 00:00:30]} Kg6
{[%clk 00:29:14]} {[%emt 00:01:32]} 43. R7h6+ {[%clk 00:30:53]} {[%emt
00:00:38]} Kg5 {[%clk 00:28:10]} {[%emt 00:01:12]} 44. R1h5+ {[%clk 00:31:13]}
{[%emt 00:00:33]} Kg4 {[%clk 00:28:19]} {[%emt 00:00:09]} 45. Rh4+ {[%clk
00:31:40]} Kf5 {[%clk 00:28:42]} {[%emt 00:00:05]} 46. Rh2 {[%clk 00:26:07]}
{[%emt 00:06:27]} Nd4+ {[%clk 00:27:18]} {[%emt 00:01:30]} 47. Kd3 {[%clk
00:26:08]} {[%emt 00:00:22]} Ke6 {[%clk 00:26:49]} {[%emt 00:00:59]} 48. Bxc5
{[%clk 00:24:06]} {[%emt 00:02:35]} Nf3 {[%clk 00:26:32]} {[%emt 00:00:44]} 49.
Re2+ {[%clk 00:24:25]} {[%emt 00:00:13]} Ne5+ {[%clk 00:26:56]} {[%emt
00:00:09]} 50. Rxe5+ {[%clk 00:24:49]} {[%emt 00:00:12]} Kxe5 {[%clk 00:27:18]}
51. Bd4+ {[%clk 00:25:16]} {[%emt 00:00:09]} Kd6 {[%clk 00:26:53]} {[%emt
00:01:21]} 52. Rxf6+ {[%clk 00:25:38]} Kc7 {[%clk 00:27:18]} {[%emt 00:00:09]}
53. Rxa6 {[%clk 00:25:30]} {[%emt 00:00:14]} Rg8 {[%clk 00:27:39]} {[%emt
00:00:05]} 54. Ra7+ {[%clk 00:24:13]} {[%emt 00:01:44]} Kb8 {[%clk 00:27:59]}
{[%emt 00:00:33]} 55. Rd7 {[%clk 00:24:19]} {[%emt 00:00:09]} Rg3+ {[%clk
00:27:24]} {[%emt 00:01:07]} 56. Kd2 {[%clk 00:23:53]} {[%emt 00:00:47]} Rxc4
{[%clk 00:27:21]} {[%emt 00:00:34]} 1/2-1/2

[Event "Chess Festival Groningen 2023 | A"]
[Site "Groningen, Netherlands"]
[Date "2023.12.27"]
[Round "6.25"]
[White "Boer, Alef"]
[Black "Albers, Sasa"]
[Result "1/2-1/2"]
[TimeControl "90min/40moves + 30min + 30sec/move"]
[WhiteElo "2017"]
[BlackElo "2192"]

1. e4 {[%clk 01:30:37]} {[%emt 00:00:57]} c6 {[%clk 01:30:53]} 2. Nc3 {[%clk
01:30:23]} {[%emt 00:00:08]} d5 {[%clk 01:31:18]} {[%emt 00:00:41]} 3. Nf3
{[%clk 01:30:41]} dxe4 {[%clk 01:31:42]} 4. Nxe4 {[%clk 01:31:00]} {[%emt
00:00:10]} Nf6 {[%clk 01:32:06]} 5. Qe2 {[%clk 01:31:08]} {[%emt 00:00:17]}
Nxe4 {[%clk 01:32:31]} {[%emt 00:00:05]} 6. Qxe4 {[%clk 01:31:30]} {[%emt
00:00:06]} Nd7 {[%clk 01:32:57]} {[%emt 00:00:21]} 7. d4 {[%clk 01:31:25]}
{[%emt 00:00:42]} Nf6 {[%clk 01:33:22]} 8. Qe2 {[%clk 01:31:13]} {[%emt
00:00:22]} Bg4 {[%clk 01:30:59]} {[%emt 00:03:36]} 9. Be3 {[%clk 01:22:43]}
{[%emt 00:08:15]} e6 {[%clk 01:27:15]} {[%emt 00:04:23]} 10. h3 {[%emt
00:02:32]} Bf5 {[%clk 01:26:44]} {[%emt 00:00:41]} 11. c3 {[%clk 01:19:48]}
{[%emt 00:01:40]} Be7 {[%clk 01:25:58]} {[%emt 00:01:09]} 12. g3 {[%clk
01:19:20]} {[%emt 00:00:58]} h6 {[%clk 01:24:53]} {[%emt 00:01:36]} 13. Bg2
{[%clk 01:19:44]} {[%emt 00:00:10]} O-O {[%clk 01:24:37]} {[%emt 00:01:06]} 14.
O-O {[%clk 01:20:08]} a5 {[%clk 01:22:34]} {[%emt 00:02:18]} 15. a4 {[%clk
01:18:43]} {[%emt 00:01:55]} Nd5 {[%clk 01:13:33]} {[%emt 00:09:54]} 16. Bd2
{[%clk 01:17:10]} {[%emt 00:01:38]} Qb6 {[%clk 01:11:53]} {[%emt 00:02:40]} 17.
Bc1 {[%clk 01:16:08]} {[%emt 00:00:59]} Qb3 {[%clk 01:02:17]} {[%emt 00:10:08]}
18. Re1 {[%clk 01:12:56]} {[%emt 00:03:40]} Nb6 {[%clk 01:00:04]} {[%emt
00:03:13]} 19. Nd2 {[%clk 01:12:15]} {[%emt 00:00:40]} Qc2 {[%clk 01:00:23]}
{[%emt 00:00:38]} 20. Ne4 {[%clk 01:09:51]} {[%emt 00:02:27]} Qxe2 {[%clk
01:00:15]} {[%emt 00:00:44]} 21. Rxe2 {[%clk 01:10:12]} {[%emt 00:00:10]} Rfd8
{[%clk 00:59:30]} {[%emt 00:01:08]} 22. g4 {[%clk 01:08:52]} {[%emt 00:01:51]}
Bg6 {[%clk 00:51:30]} {[%emt 00:09:00]} 23. Bf4 {[%clk 01:08:57]} {[%emt
00:00:09]} Nd5 {[%clk 00:43:11]} {[%emt 00:08:34]} 24. Bg3 {[%clk 01:09:14]}
{[%emt 00:00:41]} Bxe4 {[%clk 00:42:32]} {[%emt 00:00:40]} 25. Bxe4 {[%clk
01:08:55]} {[%emt 00:01:15]} Bd6 {[%clk 00:39:17]} {[%emt 00:03:26]} 26. Bxd5
{[%clk 01:07:08]} {[%emt 00:02:10]} cxd5 {[%clk 00:37:16]} {[%emt 00:02:30]} 27.
Bxd6 {[%clk 01:07:28]} {[%emt 00:00:41]} Rxd6 {[%clk 00:37:45]} 28. f4 {[%clk
01:06:27]} {[%emt 00:01:05]} Raa6 {[%clk 00:32:48]} {[%emt 00:05:25]} 29. Kf2
{[%clk 01:03:23]} {[%emt 00:03:53]} Rab6 {[%clk 00:32:48]} {[%emt 00:00:10]}
1/2-1/2